[Event "15th Tashkent Open Agzamov 2022"]
[Site "Tashkent"]
[Date "2022.05.06"]
[Round "4.7"]
[White "Madaminov, Mukhiddin"]
[Black "Vakhidov, Jakhongir"]
[Result "0-1"]
[ECO "D75"]
[WhiteElo "2308"]
[BlackElo "2552"]
[Annotator "TA"]
[PlyCount "134"]
[EventDate "2022.05.05"]
[EventType "swiss"]
[EventCountry "UZB"]
[SourceTitle "playchess.com"]
[Source "ChessBase"]
[SourceQuality "1"]
[TimeControl "5400+30"]

{[%evp 20,134,12,10,8,-7,0,0,0,-6,0,0,0,-25,0,0,0,0,0,-24,-28,-27,-41,-33,25,0,0,0,0,0,0,0,0,0,0,-56,-61,-67,-38,-65,-64,-160,0,-127,-126,-124,-124,-120,-129,-131,-170,-170,-193,-180,-185,-258,-260,-264,-272,-266,-208,-169,-103,-104,-41,-40,-61,-155,-143,-190,-192,-185,-164,-168,-188,-340,-328,-323,-320,-279,-267,-241,0,0,0,-12833,-12833,-12833,-12833,-12833,-12834,-12837,-12836,-12838,-12838,-12840,-12840,-12842,-12842,-12843,-12843,-12843,-12844,-12845,-12845,-12847,-12846,-12847,-12847,-12847,-12847,-12847,-12848,-12848,-12848,-12849,-12849]} 1. d4 {[%emt 0:00:25]} Nf6 {[%emt 0:05:25]} 2. c4 {[%emt 0:00:26]} g6 {[%emt 0:00:40]} 3. Nc3 {[%emt 0:00:09]} Bg7 {[%emt 0:00:15]} 4. Nf3 {[%emt 0:03:10]} O-O {[%emt 0:00:17]} 5. g3 {[%emt 0:02:15]} d5 {[%emt 0:07:44]} 6. cxd5 {[%emt 0:03:05]} Nxd5 {[%emt 0:00:07]} 7. Bg2 {[%emt 0:00:15]} Nxc3 {[%emt 0:00:09]} 8. bxc3 {[%emt 0:00:10]} c5 {[%emt 0:00:04]} 9. O-O {[%emt 0:02:30]} cxd4 {[%emt 0:00:05]} 10. cxd4 {[%emt 0:04:10]} Nc6 {[%emt 0:00:14]} 11. e3 {[%emt 0:04:30]} Be6 {[%emt 0:03:04] D75: Fianchetto Grünfeld: Main Line with 7...c5.} 12. Rb1 {[%emt 0:09:20]} Qd7 {[%emt 0:06:39]} 13. Qe2 {[%emt 0:15:55]} Rac8 {[%emt 0:05:00] The position is equal.} 14. Rd1 {[%emt 0:06:25] [#]} Rfd8 $146 {[%emt 0:00:29]} ({Predecessor:} 14... Bf5 15. e4 Bg4 16. Be3 Bxd4 17. e5 Qf5 18. Bxd4 Nxd4 19. Nxd4 Qxb1 20. Rxb1 Bxe2 21. Nxe2 {½-½ (40) Nepomniachtchi,I (2784)-Radjabov,T (2765) chess24.com INT 2020}) 15. Ba3 {[%emt 0:01:10][%cal Od4d5,Bc1a3,Ba3b4,Bb4c3][%mdl 32]} Na5 {[%emt 0:19:02][%cal Bc6a5,Ba5b7,Bb7c5,Bc5b3,Bb3a1][%mdl 32]} 16. e4 {[%emt 0:13:38]} Bc4 {[%emt 0:02:49]} (16... Bg4 {keeps more tension.} 17. Rb5 Nc6 18. Rd5 Qc7) 17. Qd2 {[%emt 0:02:17]} b6 {[%emt 0:00:31]} 18. Bb4 {[%emt 0:01:20]} Nb7 {[%emt 0:07:18]} 19. a3 {[%emt 0:05:45]} e6 {[%emt 0:13:17]} 20. h4 {[%emt 0:05:15][%cal Bh2h4,Bh4h5][%mdl 32]} a5 {[%emt 0:08:45]} 21. Bc3 {[%emt 0:00:15]} Qc7 {[%emt 0:00:04]} (21... Nd6 $15 22. Qe3 Ba2) 22. Ba1 {[%emt 0:08:50][%cal Oh4h5]} a4 {[%emt 0:04:35]} 23. h5 {[%emt 0:00:52]} Nc5 {[%emt 0:04:41]} 24. h6 {[%emt 0:01:49]} Nb3 {[%emt 0:00:09]} (24... Nxe4 25. Qe3 $16) 25. Qe3 {[%emt 0:04:24]} Nxa1 {[%emt 0:03:19]} 26. hxg7 {[%emt 0:00:48]} Nb3 {[%emt 0:00:18]} 27. e5 {[%emt 0:03:33]} (27. Bh3 $11) 27... Kxg7 $15 {[%emt 0:00:25] Threatens to win with ...Qe7.} 28. Ng5 $1 {[%emt 0:00:11]} Bd5 {[%emt 0:05:43]} 29. Bxd5 {[%emt 0:00:14]} (29. Qf4 Qe7 30. Bxd5 Rxd5 $17) 29... Rxd5 {[%emt 0:00:02]} 30. Kg2 {[%emt 0:01:03]} (30. Ne4 $1 $15) 30... Qc2 $2 {[%emt 0:01:15]} ({Black should play} 30... Rcd8 $1 $17 {[%cal Rb3d4]} 31. Nf3 Qb7) 31. Rh1 {[%emt 0:01:12]} (31. g4 $11) 31... h5 $1 $36 {[%emt 0:00:03][%mdl 2048] Keeping White busy. Active counter play!} 32. Rbd1 {[%emt 0:00:36][%cal Og3g4] [#]} Rc3 $1 {[%emt 0:00:45]} 33. Qf4 {[%emt 0:00:05]} Qf5 {[%emt 0:00:03] Really sharp!} 34. Qxf5 {[%emt 0:00:50]} exf5 {[%emt 0:00:02]} 35. e6 {[%emt 0:00:11]} fxe6 {[%emt 0:00:46]} (35... Rxd4 36. exf7 Rxd1 37. Rxd1 $16) (35... Nxd4 36. e7 Re5 37. Rxd4 $16) 36. Nxe6+ {[%emt 0:00:27]} Kf6 {[%emt 0:00:02]} 37. Rhe1 {[%emt 0:00:55]} (37. Nf4 $142 Rd6 38. Ne2) 37... g5 $19 {[%emt 0:01:58]} 38. Re2 {[%emt 0:00:33]} Rc6 {[%emt 0:01:53]} 39. Rde1 {[%emt 0:00:31]} Rc1 {[%emt 0:01:27]} ({Not} 39... Nxd4 $2 40. Nxd4 Rxd4 41. Re8 $19) 40. Rxc1 {[%emt 0:00:29]} Nxc1 {[%emt 0:00:01][%mdl 4096] Endgame KRN-KRN} 41. Nc7 {[%emt 0:00:07]} Rxd4 {[%emt 0:00:51]} (41... Nxe2 $17 42. Nxd5+ Kg6 43. Ne7+ Kf7) 42. Re6+ $15 {[%emt 0:00:22]} Kf7 {[%emt 0:00:02]} 43. Rc6 {[%emt 0:00:07] [#] Prevents Rc4.} (43. Rxb6 $15 Rd3 44. Nb5) 43... Rd1 $1 $17 {[%emt 0:00:13] ...Nd3 is the strong threat.} 44. Ne6 {[%emt 0:00:45]} (44. Nb5 $17 {was worth a try.}) 44... g4 $19 {[%emt 0:00:02] And now ...Nd3 would win.} 45. Rxb6 {[%emt 0:00:11]} Nd3 {[%emt 0:00:40] aiming for ...Ne1+.} 46. Ng5+ {[%emt 0:00:04]} Kg7 {[%emt 0:00:36] Strongly threatening ...Rd2.} 47. Ra6 $2 {[%emt 0:00:05]} (47. f4) 47... Rd2 {[%emt 0:00:25]} 48. Kg1 {[%emt 0:01:11]} Nxf2 {[%emt 0:00:30]} ({Avoid the trap} 48... Rxf2 $2 49. Rd6 Rd2 50. Ne6+ Kf7 51. Nc5 $19) 49. Ne6+ {[%emt 0:01:09]} Kf7 {[%emt 0:00:05]} 50. Nf4 {[%emt 0:01:31]} Nh3+ $2 {[%emt 0:01:56]} (50... Ne4 $19 51. Ra7+ Kf6 52. Ra6+ Kg7 53. Nxh5+ Kf7 54. Rxa4 Kg6 55. Nf4+ Kg5) 51. Nxh3 $11 {[%emt 0:00:00]} gxh3 {[%emt 0:00:01] KR-KR} 52. Ra7+ $2 {[%emt 0:00:29][%mdl 8192] Black keeps a firm grip on the game.} (52. Rxa4 $11 Rg2+ 53. Kh1) 52... Kf6 $19 {[%emt 0:00:09] Black is clearly winning.} 53. Rxa4 {[%emt 0:00:29]} Rg2+ {[%emt 0:00:02]} 54. Kh1 {[%emt 0:00:04]} Rxg3 {[%emt 0:00:05]} 55. Kh2 {[%emt 0:00:11]} Rb3 {[%emt 0:00:16]} 56. Ra8 {[%emt 0:00:17]} Kg5 {[%emt 0:00:30]} 57. a4 {[%emt 0:00:06]} Kh4 {[%emt 0:02:04]} 58. a5 {[%emt 0:00:07]} Rb2+ {[%emt 0:00:05]} 59. Kh1 {[%emt 0:00:01]} h2 {[%emt 0:00:56] ( -> ...Kh3)} 60. Rc8 {[%emt 0:00:40]} f4 {[%emt 0:00:23][%cal Bf5f4,Bf4f3,Bf3f2][%mdl 32]} 61. Rc3 {[%emt 0:02:05]} Ra2 {[%emt 0:00:08]} 62. Rc1 {[%emt 0:00:38]} Kg3 {[%emt 0:00:15]} 63. Rb1 {[%emt 0:00:52]} Rxa5 {[%emt 0:00:35]} 64. Rc1 {[%emt 0:00:24]} f3 {[%emt 0:00:38]} 65. Rb1 {[%emt 0:00:04]} Re5 {[%emt 0:00:21]} 66. Ra1 {[%emt 0:00:47]} Re3 {[%emt 0:00:09]} 67. Rb1 {[%emt 0:00:42]} f2 {[%emt 0:00:40] Weighted Error Value: White=0.32/Black=0.13 (very precise)} 0-1

[Event "15th Tashkent Open Agzamov 2022"]
[Site "Tashkent"]
[Date "2022.05.06"]
[Round "4.8"]
[White "Rakhimzhan, Alen"]
[Black "Asadli, Vugar"]
[Result "0-1"]
[ECO "E75"]
[WhiteElo "2248"]
[BlackElo "2578"]
[Annotator "TA"]
[PlyCount "150"]
[EventDate "2022.05.05"]
[EventType "swiss"]
[EventCountry "UZB"]
[SourceTitle "playchess.com"]
[Source "ChessBase"]
[SourceQuality "1"]
[TimeControl "5400+30"]

{[%evp 25,150,0,75,64,96,86,87,90,74,88,96,31,83,6,10,0,0,0,8,2,4,0,8,-7,0,0,0,0,0,0,0,0,0,0,0,0,0,0,0,-8,-8,-13,-13,-13,-14,-14,-12,-35,-29,-34,-39,-65,-14,-23,-7,-7,-6,-18,0,0,0,0,0,-27,-6,-61,-61,-61,-61,-61,-61,-64,-64,-70,-45,-64,-64,-70,-70,-70,-70,-88,-88,-88,-88,-168,-168,-175,-168,-160,-109,-109,-109,-109,-98,-109,-109,-109,-109,-505,-491,-426,-396,-829,-725,-906,-881,-822,-666,-12839,-12840,-1791,-1468,-12845,-12846,-12846,-12846,-12847,-11950,-12847,-12847,-12850,-12848,-12850,-12849,-12850,-12850]} 1. d4 {[%emt 0:02:17] Krasenkow,Michal} Nf6 {[%emt 0:00:21]} 2. c4 {[%emt 0:00:08]} g6 {[%emt 0:00:10]} 3. Nc3 {[%emt 0:00:10]} Bg7 {[%emt 0:00:07]} 4. e4 {[%emt 0:00:05]} d6 {[%emt 0:00:04]} 5. Be2 {[%emt 0:00:06]} O-O {[%emt 0:00:52]} 6. Bg5 {[%emt 0:00:09]} c5 {[%emt 0:02:34]} 7. d5 {[%emt 0:00:07]} e6 {[%emt 0:00:03]} 8. Qd2 {[%emt 0:00:15]} exd5 {[%emt 0:00:55]} 9. exd5 {[%emt 0:00:07]} Qb6 {[%emt 0:00:22]} 10. Nf3 {[%emt 0:02:51]} Bf5 {[%emt 0:02:40]} 11. Nh4 {[%emt 0:01:19]} Ne4 {[%emt 0:06:36]} 12. Nxe4 {[%emt 0:00:09]} Bxe4 {[%emt 0:00:05]} 13. f3 {[%emt 0:03:34]} Qxb2 {[%emt 0:11:59]} 14. Rc1 $16 {[%emt 0:13:14] E75: King's Indian: Averbakh Variation: 6...c5 7 d5 e6.} Bf5 $5 {[%emt 0:19:11][%mdl 4] Exploring less charted territory.} 15. Nxf5 {[%emt 0:04:04]} gxf5 {[%emt 0:00:38]} 16. Qxb2 $1 {[%emt 0:12:34] White is better.} Bxb2 {[%emt 0:00:04]} 17. Rb1 {[%emt 0:02:39]} Bc3+ {[%emt 0:00:07] [#]} 18. Bd2 $146 {[%emt 0:00:06]} (18. Kd1 $16) ({Predecessor:} 18. Kd1 Re8 19. Rxb7 Na6 20. a3 Rab8 21. Rxb8 Nxb8 22. Bd3 Nd7 23. Kc2 Bd4 24. Rb1 {1-0 (33) Carlsen,M (2861)-Van Wely,L (2679) Wijk aan Zee 2013 CBM 153 [Krasenkow,Michal]}) 18... Bd4 {[%emt 0:05:31]} ({Black should play} 18... Bxd2+ $14 19. Kxd2 b6) 19. Bd3 {[%emt 0:04:46]} (19. Bh6 $16 Rd8 20. Rxb7) 19... Nd7 $11 {[%emt 0:06:11][%cal Bb8d7,Bd7e5,Be5g6,Bg6e7][%mdl 32]} ({Don't take} 19... Re8+ 20. Kd1 $16) 20. Bxf5 {[%emt 0:20:28]} (20. Bf4 {keeps more tension.} Ne5 21. Kd2 Rab8 22. Rhc1) 20... Ne5 {[%emt 0:01:05]} 21. Rc1 {[%emt 0:06:58]} a6 {[%emt 0:01:51]} 22. f4 {[%emt 0:06:38]} Ng6 {[%emt 0:00:23]} 23. Ke2 {[%emt 0:04:57]} b5 {[%emt 0:01:56]} 24. Kd3 {[%emt 0:00:37]} Rfb8 {[%emt 0:00:58]} 25. Rb1 {[%emt 0:01:31]} Rb7 {[%emt 0:00:34]} 26. a4 {[%emt 0:03:53]} Ne7 {[%emt 0:14:00]} 27. Be4 {[%emt 0:02:00]} Rab8 {[%emt 0:00:49]} (27... f5 $5 28. Bf3 Rab8 29. axb5 axb5 $11) 28. axb5 {[%emt 0:02:14]} axb5 {[%emt 0:00:13]} (28... f5 $5 29. Bf3 axb5 30. cxb5 Rxb5 31. Rxb5 Rxb5 $11) 29. cxb5 {[%emt 0:00:41]} Rxb5 {[%emt 0:00:16]} (29... f5 $5 30. Bf3 Rxb5 31. Rxb5 Rxb5 $11) 30. Rxb5 {[%emt 0:01:52]} Rxb5 {[%emt 0:00:04]} 31. Rc1 {[%emt 0:00:27]} Nc8 {[%emt 0:02:10]} 32. Kc4 {[%emt 0:02:37]} Rb2 {[%emt 0:01:47]} 33. Ba5 {[%emt 0:00:32]} Nb6+ {[%emt 0:02:41]} 34. Bxb6 {[%emt 0:00:33] This bishop pair is nice.} Rb4+ {[%emt 0:00:03]} 35. Kd3 {[%emt 0:00:58] aiming for Ba5.} Rxb6 {[%emt 0:00:07][%mdl 4096] Endgame KRB-KRB} 36. Bf3 {[%emt 0:01:30]} Kg7 {[%emt 0:01:28]} 37. Re1 {[%emt 0:01:13]} Rb3+ {[%emt 0:00:49]} 38. Kc4 {[%emt 0:00:32]} Rb4+ {[%emt 0:00:18]} 39. Kd3 {[%emt 0:00:05]} Bf6 {[%emt 0:00:47]} 40. Re4 {[%emt 0:00:13]} Rb3+ {[%emt 0:00:03]} 41. Kc2 {[%emt 0:01:18]} Rb2+ {[%emt 0:00:09]} 42. Kd3 {[%emt 0:00:09]} Ra2 {[%emt 0:00:28]} 43. Kc4 {[%emt 0:00:28]} Rd2 {[%emt 0:01:02][%cal Ba2d2,Bd2d4,Bd4f4,Bf4f5,Bf5g5][%mdl 32]} 44. h3 {[%emt 0:00:46]} h6 {[%emt 0:00:23]} 45. Re2 {[%emt 0:00:38]} (45. Kb5 $11) 45... Rd4+ $15 {[%emt 0:01:09]} 46. Kb5 {[%emt 0:00:05]} Rxf4 {[%emt 0:00:26]} 47. Re4 {[%emt 0:00:23]} Rf5 {[%emt 0:08:45]} 48. Kc6 {[%emt 0:00:37]} Be5 {[%emt 0:00:14]} 49. Rg4+ {[%emt 0:00:28]} Kf8 {[%emt 0:03:33]} 50. Ra4 {[%emt 0:00:22]} Ke7 {[%emt 0:00:30]} 51. Ra7+ {[%emt 0:00:48]} Kf6 {[%emt 0:00:13]} 52. Ra4 {[%emt 0:00:07]} Rg5 {[%emt 0:03:29]} 53. Bg4 {[%emt 0:00:45]} Rg8 {[%emt 0:00:35]} 54. Kc7 {[%emt 0:00:26]} Kg6 {[%emt 0:00:41]} 55. Bd7 {[%emt 0:00:56] [#]} (55. Be2 $17 {keeps fighting.}) 55... f5 $1 $19 {[%emt 0:00:32]} 56. Be6 {[%emt 0:00:28]} Rg7+ {[%emt 0:00:14]} 57. Kc6 {[%emt 0:00:29]} f4 {[%emt 0:00:31]} ({Black should try} 57... Kf6 58. Ra8 Kg5) 58. Bg4 $17 {[%emt 0:00:24]} Kg5 {[%emt 0:00:30]} 59. Bf3 {[%emt 0:00:31]} Rg8 {[%emt 0:00:56]} 60. Kc7 {[%emt 0:00:14] Against Rb8} Kh4 {[%emt 0:00:23] Hoping for ...Kg3.} 61. Re4 {[%emt 0:00:43]} Kg3 {[%emt 0:00:45] Threatens to win with ...Kh2.} 62. Kd7 $2 {[%emt 0:00:32][%mdl 8192] White does not recover from this.} (62. Kc6 $17 {was the crucial defense.}) 62... Rb8 $19 {[%emt 0:00:39]} 63. Ke6 {[%emt 0:00:22]} Rb3 {[%emt 0:00:42]} 64. Rxe5 $2 {[%emt 0:00:46]} (64. h4 Kxh4 65. Kf5) 64... dxe5 {[%emt 0:00:07] KR-KB. Black is clearly winning.} 65. d6 {[%emt 0:00:10]} c4 {[%emt 0:01:28][%cal Bc5c4,Bc4c3][%mdl 32]} 66. d7 {[%emt 0:00:31] [#]} Rb8 $1 {[%emt 0:00:10][%cal Oe5e4] White must now prevent ...e4!} ({Weaker is} 66... Rd3 67. Bd5 e4 68. d8=Q $18) 67. Kxe5 {[%emt 0:00:41]} c3 {[%emt 0:00:16] ( -> ...c2)} 68. Be4 {[%emt 0:00:07]} h5 {[%emt 0:00:45] And now ...Rd8 would win.} 69. h4 {[%emt 0:00:52]} Rd8 {[%emt 0:00:25]} 70. Ke6 {[%emt 0:00:38]} Kxh4 {[%emt 0:00:26]} 71. Ke7 {[%emt 0:00:07]} Rb8 {[%emt 0:00:16]} 72. d8=Q {[%emt 0:00:37]} Rxd8 {[%emt 0:00:03]} 73. Kxd8 {[%emt 0:00:04]} Kg3 {[%emt 0:00:03]} 74. Ke7 {[%emt 0:00:53]} h4 {[%emt 0:05:50]} 75. Kf6 {[%emt 0:00:11]} f3 {[%emt 0:00:07] Weighted Error Value: White=0.13 (very precise) /Black=0.09 (flawless)} 0-1

[Event "15th Tashkent Open Agzamov 2022"]
[Site "Tashkent"]
[Date "2022.05.06"]
[Round "4.9"]
[White "Sanal, Vahap"]
[Black "Saydaliev, Saidakbar"]
[Result "1-0"]
[ECO "C77"]
[WhiteElo "2575"]
[BlackElo "2343"]
[Annotator "TA"]
[PlyCount "89"]
[EventDate "2022.05.05"]
[EventType "swiss"]
[EventCountry "UZB"]
[SourceTitle "playchess.com"]
[Source "ChessBase"]
[SourceQuality "1"]
[TimeControl "5400+30"]

{[%evp 16,89,34,31,28,22,20,25,44,37,50,37,78,75,89,59,82,72,72,72,72,70,74,63,77,18,16,18,104,102,99,101,158,111,119,125,108,104,111,102,106,74,74,61,70,83,111,124,130,112,117,108,150,168,178,161,167,170,223,218,217,214,239,241,229,234,255,195,196,200,194,163,175,174,830,806]} 1. e4 {[%emt 0:00:56]} e5 {[%emt 0:00:42]} 2. Nf3 {[%emt 0:00:38]} Nc6 {[%emt 0:00:32]} 3. Bb5 {[%emt 0:02:50]} a6 {[%emt 0:01:07]} 4. Ba4 {[%emt 0:00:08]} Nf6 {[%emt 0:00:10]} 5. d3 {[%emt 0:01:11]} d6 {[%emt 0:02:35]} 6. c3 {[%emt 0:00:29]} g6 {[%emt 0:03:09]} 7. O-O {[%emt 0:00:20]} Bg7 {[%emt 0:00:25]} 8. Re1 {[%emt 0:00:28]} O-O {[%emt 0:02:16]} 9. h3 {[%emt 0:00:14]} h6 {[%emt 0:09:32] C77: Ruy Lopez: 3...a6 4 Ba4 Nf6, unusual lines.} 10. Be3 {[%emt 0:00:13]} Re8 {[%emt 0:03:55]} 11. Nbd2 {[%emt 0:01:05]} b5 {[%emt 0:04:47] White has an edge.} 12. Bc2 {[%emt 0:00:24]} Bb7 {[%emt 0:04:31]} 13. a4 {[%emt 0:03:06]} Qd7 {[%emt 0:05:04]} 14. b4 {[%emt 0:02:26]} Rad8 {[%emt 0:05:41]} 15. Qb1 {[%emt 0:05:41] [#]} Qc8 $146 {[%emt 0:04:14]} ({Predecessor:} 15... g5 16. Nf1 Nh5 17. d4 exd4 18. Nxd4 Nxd4 19. Bxd4 Bxd4 20. cxd4 Nf4 21. axb5 axb5 {0-1 (46) Deng,T (2105)-Xu,Y (2456) Chengdu 2017}) 16. Ra3 {[%emt 0:06:35]} d5 {[%emt 0:16:14]} 17. Nb3 {[%emt 0:02:41] Inhibits d4.} Nb8 {[%emt 0:00:39]} 18. axb5 {[%emt 0:08:43]} axb5 {[%emt 0:00:10]} 19. Nc5 {[%emt 0:00:14]} Bc6 {[%emt 0:00:25]} 20. Qa2 {[%emt 0:06:32]} (20. Ra7 $16) 20... Nbd7 $11 {[%emt 0:02:42]} 21. Ra6 {[%emt 0:08:05]} Nb6 {[%emt 0:04:43]} (21... Nxc5 $11 22. Rxc6 (22. Bxc5 Qd7 $14) 22... dxe4) 22. Bb3 $16 {[%emt 0:05:13]} Re7 {[%emt 0:00:45]} 23. Ra7 {[%emt 0:16:10]} dxe4 {[%emt 0:07:16]} (23... Kh7 $142) 24. dxe4 {[%emt 0:00:14]} (24. Bxf7+ Rxf7 25. Nxe5 Bd5 $15) (24. Nh4 $142 {Hoping for Nxg6.} Bd5 25. Nxg6 $1 fxg6 26. Bxd5+ Nfxd5 27. dxe4) 24... Ne8 {[%emt 0:00:10]} 25. Nh4 {[%emt 0:01:45] 0x0.001dd85e7b9adp-1022s more active pieces.} Nc4 {[%emt 0:02:34]} 26. Bxc4 {[%emt 0:00:42]} bxc4 {[%emt 0:00:15]} 27. Qxc4 {[%emt 0:01:52] Black must now prevent Nxg6.} Kh7 {[%emt 0:01:48]} 28. Qa6 {[%emt 0:07:48]} Qxa6 {[%emt 0:01:32]} 29. Rxa6 {[%emt 0:00:02]} Bb5 {[%emt 0:00:07]} 30. Ra5 $36 {[%emt 0:00:16][%mdl 2048] White is really pushing. White leaves nothing to chance now.} c6 {[%emt 0:01:32]} 31. Nf3 {[%emt 0:04:15]} Nd6 {[%emt 0:01:15]} 32. Rd1 {[%emt 0:00:38]} Ree8 {[%emt 0:00:27]} 33. Ra7 {[%emt 0:00:05][%cal Ba5a7,Ba7c7,Bc7c6,Bc6c4][%mdl 32]} Bc4 {[%emt 0:04:36]} 34. Rc7 {[%emt 0:02:58]} Nb5 {[%emt 0:04:51]} 35. Rxd8 {[%emt 0:00:14]} Rxd8 {[%emt 0:00:01]} 36. Rxc6 {[%emt 0:00:09] Threatens to win with Nd2.} Nxc3 {[%emt 0:01:42]} (36... Be2 $142 37. Na4 f5 38. exf5 gxf5) 37. Nb7 $18 {[%emt 0:00:25][%csl LRc4,LRd8] Pair of Knights!} Ne2+ {[%emt 0:00:07]} 38. Kh2 {[%emt 0:00:09]} Rb8 {[%emt 0:01:26]} 39. Rxc4 {[%emt 0:01:49]} Rxb7 {[%emt 0:00:00]} 40. g3 {[%emt 0:00:21] Prevents Nf4.} f5 {[%emt 0:01:23]} 41. Kg2 {[%emt 0:02:01]} fxe4 {[%emt 0:04:16] [#]} 42. Nd2 {[%emt 0:01:46]} ({But not} 42. Rxe4 Nc3 43. Rc4 Nd5 $16) 42... Bf8 {[%emt 0:00:01]} 43. Bc5 {[%emt 0:02:34]} ({Resist} 43. Rxe4 Rxb4 44. Rxe5 Nd4 $16) 43... Bxc5 {[%emt 0:00:19]} 44. bxc5 {[%emt 0:00:02][%cal Bb4c5,Bc5c6][%mdl 32]} ({Much less strong is} 44. Rxc5 $6 Rxb4 45. Rxe5 Nc3 $14) 44... e3 {[%emt 0:00:01] [#]} (44... Nd4 45. Nxe4 Kg8 46. Nf6+ Kf7) 45. c6 $1 {[%emt 0:01:41] Weighted Error Value: White=0.10 (very precise) /Black=0.15 (very precise)} 1-0

[Event "15th Tashkent Open Agzamov 2022"]
[Site "Tashkent"]
[Date "2022.05.06"]
[Round "4.10"]
[White "Muradli, Mahammad"]
[Black "Abdisalimov, Abdimalik"]
[Result "1/2-1/2"]
[ECO "D86"]
[WhiteElo "2539"]
[BlackElo "2435"]
[Annotator "TA"]
[PlyCount "44"]
[EventDate "2022.05.05"]
[EventType "swiss"]
[EventCountry "UZB"]
[SourceTitle "playchess.com"]
[Source "ChessBase"]
[SourceQuality "1"]
[TimeControl "5400+30"]

{[%evp 24,44,35,35,64,29,26,12,12,10,10,8,10,10,10,10,8,8,8,8,10,10,13]} 1. d4 {[%emt 0:03:10]} Nf6 {[%emt 0:00:07]} 2. c4 {[%emt 0:00:05]} g6 {[%emt 0:00:05]} 3. Nc3 {[%emt 0:00:05]} d5 {[%emt 1:31:48]} 4. cxd5 {[%emt 0:00:28]} Nxd5 {[%emt 0:00:05]} 5. e4 {[%emt 0:00:07]} Nxc3 {[%emt 0:00:14]} 6. bxc3 {[%emt 0:00:05]} Bg7 {[%emt 0:00:06]} 7. Bc4 {[%emt 1:30:00]} c5 {[%emt 0:00:05]} 8. Ne2 {[%emt 0:00:19]} Nc6 {[%emt 0:00:39]} 9. Be3 {[%emt 0:02:13][%cal Bc1e3,Be3d2,Bd2c3][%mdl 32]} cxd4 {[%emt 0:00:17]} 10. cxd4 {[%emt 0:00:08]} Qa5+ {[%emt 0:00:05]} 11. Bd2 {[%emt 0:04:13]} Qa3 {[%emt 1:34:09] is the new trend.} 12. Rb1 {[%emt 0:01:44]} O-O {[%emt 1:34:16]} 13. O-O {[%emt 0:01:16] Strongly threatening d5.} Bg4 {[%emt 0:00:25] D86: Exchange Grünfeld: Classical Line (7 Bc4).} 14. f3 {[%emt 0:09:39]} ({Reject} 14. Rxb7 Nxd4 15. h3 Bxe2 16. Bxe2 Qxa2 $17) (14. d5 $5 {[%cal Rd5c6]} b5 {[#]} 15. Bc1 $1 $16 (15. dxc6 bxc4 16. Bb4 Qxa2 $17) (15. Rxb5 Nd4 $14)) 14... Be6 {[%emt 0:00:30]} 15. Bxe6 {[%emt 0:00:35]} fxe6 {[%emt 0:00:04] [#] The position is equal.} 16. Bc3 $146 {[%emt 0:09:07]} ({Predecessor:} 16. Rxb7 Rfd8 17. Qb1 Nxd4 18. Nxd4 Bxd4+ 19. Kh1 Bc5 20. Bh6 Qd3 21. Qe1 Rab8 22. Rxb8 Rxb8 {0-1 (38) Semmelroth,H-Lang,M corr 1990}) 16... Rfd8 {[%emt 0:02:49][%cal Oc6d4]} 17. Qb3 {[%emt 1:05:33]} Qxb3 {[%emt 0:02:47]} 18. Rxb3 {[%emt 0:00:16]} Nxd4 {[%emt 0:00:11]} 19. Nxd4 {[%emt 0:00:08]} Bxd4+ {[%emt 0:00:03]} 20. Bxd4 {[%emt 0:00:11]} Rxd4 {[%emt 0:00:03]} 21. Rxb7 {[%emt 0:00:11]} Kf7 {[%emt 0:00:03]} 22. Rc1 {[%emt 0:58:24]} a5 {[%emt 0:00:19] Weighted Error Value: White=0.06 (flawless) /Black=0.05 (flawless)} 1/2-1/2

[Event "15th Tashkent Open Agzamov 2022"]
[Site "Tashkent"]
[Date "2022.05.07"]
[Round "5.1"]
[White "Vakhidov, Jakhongir"]
[Black "Sindarov, Javokhir"]
[Result "1/2-1/2"]
[WhiteElo "2552"]
[BlackElo "2609"]
[Annotator "TA"]
[PlyCount "16"]
[EventDate "2022.05.05"]
[EventType "swiss"]
[EventCountry "UZB"]
[SourceTitle "playchess.com"]
[Source "ChessBase"]
[SourceQuality "1"]
[TimeControl "5400+30"]

{[%evp 15,16,0,36]} 1. d4 {[%emt 0:02:53]} Nf6 {[%emt 0:00:09]} 2. c4 {[%emt 0:00:14]} g6 {[%emt 0:00:10]} 3. Nc3 {[%emt 0:00:36]} d5 {[%emt 0:00:44]} 4. Nf3 {[%emt 0:00:29]} Bg7 {[%emt 0:01:03] [#]} 5. Qa4+ $146 {[%emt 0:01:00]} ({Predecessor:} 5. e3 O-O 6. cxd5 Nxd5 7. Bc4 Nb6 8. Bb3 c5 9. O-O cxd4 10. exd4 Nc6 11. d5 Na5 12. h3 Nxb3 13. axb3 Bxc3 14. bxc3 Qxd5 15. Bd2 f6 16. c4 Qf7 17. Be3 Bf5 18. Nd4 Bd7 19. Ra5 Rfd8 {½-½ (43) Mamedyarov,S (2771)-Duda,J (2750) Oslo 2022}) 5... Bd7 {[%emt 0:01:20]} 6. Qd1 {[%emt 0:00:39]} Bc8 {[%emt 0:01:16]} 7. Qa4+ {[%emt 0:00:36]} Bd7 {[%emt 0:00:18]} 8. Qd1 {[%emt 0:00:18] seems to push 8.Qb3 aside.} Bc8 {[%emt 0:00:10]} 1/2-1/2